fUST/lending_fUST_20240726
["ID","MTS","AMOUNT","RATE_DAILY","PERIOD"]
[333203404,1721943051560,-500.0,0.00013972,2]
[333203405,1721943051570,-1528.04,0.00013972,2]
[333203406,1721943051580,-813.64,0.00013972,2]
[333203407,1721943051592,-731.97,0.00013972,2]
[333203408,1721943051602,-500.0,0.00013972,2]
[333203409,1721943051613,-832.58,0.00013972,2]
[333203410,1721943051624,-500.0,0.00013972,2]
[333203411,1721943051635,-856.03,0.00013972,2]
[333203412,1721943051646,-500.0,0.00013972,2]
[333203413,1721943051657,-500.0,0.00013972,2]
[333203414,1721943051667,-500.0,0.00013972,2]
[333203415,1721943051678,-2305.9,0.00013972,2]
[333203416,1721943051688,-500.0,0.00013972,2]
[333203417,1721943051698,-500.0,0.00013972,2]
[333203418,1721943051709,-294.0,0.00013972,2]
[333203419,1721943051720,-1627.06,0.00013972,2]
[333203420,1721943051731,-500.0,0.00013972,2]
[333203421,1721943051741,-500.0,0.00013972,2]
[333203422,1721943051753,-151.0,0.00013972,2]
[333203423,1721943051765,-151.0,0.00013972,2]
[333203424,1721943051774,-500.0,0.00013972,2]
[333203425,1721943051783,-500.0,0.00013972,2]
[333203426,1721943051793,-1486.08,0.00013972,2]
[333203427,1721943051803,-2159.85,0.00013972,2]
[333203428,1721943051812,-500.0,0.00013972,2]
[333203429,1721943051821,-500.0,0.00013972,2]
[333203430,1721943051831,-1384.64,0.00013972,2]
[333203431,1721943051840,-500.0,0.00013972,2]
[333203432,1721943051850,-500.0,0.00013972,2]
[333203433,1721943051860,-500.0,0.00013972,2]
[333203434,1721943051869,-500.0,0.00013972,2]
[333203435,1721943051879,-686.6,0.00013972,2]
[333203436,1721943051888,-500.0,0.00013972,2]
[333203437,1721943051900,-1381.17,0.00013972,2]
[333203438,1721943051910,-500.0,0.00013972,2]
[333203439,1721943051919,-500.0,0.00013972,2]
[333203440,1721943051929,-500.0,0.00013972,2]
[333203441,1721943051941,-903.84,0.00013972,2]
[333203442,1721943051950,-500.0,0.00013972,2]
[333203443,1721943051959,-895.94,0.00013972,2]
[333203444,1721943051969,-500.0,0.00013972,2]
[333203445,1721943051978,-768.52,0.00013972,2]
[333203446,1721943051987,-500.0,0.00013972,2]
[333203447,1721943051997,-500.0,0.00013972,2]
[333203448,1721943052008,-8589.84,0.00013972,2]
[333203449,1721943052017,-5868.84,0.00013972,2]
[333203450,1721943052026,-500.0,0.00013972,2]
[333203451,1721943052035,-500.0,0.00013972,2]
[333203452,1721943052044,-546.36,0.00013972,2]
[333203453,1721943052053,-500.0,0.00013972,2]
[333203454,1721943052062,-500.0,0.00013972,2]
[333203455,1721943052071,-3654.32,0.00013972,2]
[333203456,1721943052081,-500.0,0.00013972,2]
[333203457,1721943052090,-151.0,0.00013972,2]
[333203458,1721943052100,-1196.88,0.00013972,2]
[333203459,1721943052110,-151.0,0.00013972,2]
[333203460,1721943052119,-500.0,0.00013972,2]
[333203461,1721943052129,-151.0,0.00013972,2]
[333203462,1721943052139,-500.0,0.00013972,2]
[333203463,1721943052148,-1371.58,0.00013972,2]
[333203464,1721943052158,-541.65889179,0.00013972,2]
[333203465,1721943052167,-1434.79,0.00013972,2]
[333203466,1721943052176,-785.06,0.00013972,2]
[333203467,1721943052186,-1617.67,0.00013972,2]
[333203468,1721943052195,-500.0,0.00013972,2]
[333203469,1721943052205,-500.0,0.00013972,2]
[333203470,1721943052214,-500.0,0.00013972,2]
[333203471,1721943052223,-7052.47,0.00013972,2]
[333203472,1721943052232,-500.0,0.00013972,2]
[333203473,1721943052241,-500.0,0.00013972,2]
[333203474,1721943052251,-569.17,0.00013972,2]
[333203475,1721943052260,-1169.65,0.00013972,2]
[333203476,1721943052270,-500.0,0.00013972,2]
[333203477,1721943052280,-738.58,0.00013972,2]
[333203478,1721943052289,-552.74,0.00013972,2]
[333203479,1721943052298,-500.0,0.00013972,2]
[333203480,1721943052308,-161.106334,0.00013972,2]
[333203481,1721943052317,-161.106334,0.00013972,2]
[333203482,1721943052326,-2526.03,0.00013972,2]
[333203483,1721943052336,-161.106334,0.00013972,2]
[333203484,1721943052345,-161.106334,0.00013972,2]
[333203485,1721943052355,-161.106334,0.00013972,2]
[333203486,1721943052365,-161.106334,0.00013972,2]
[333203487,1721943052374,-500.0,0.00013972,2]
[333203488,1721943052384,-500.0,0.00013972,2]
[333203489,1721943052399,-462.1220246,0.00013972,2]
[333203490,1721943052408,-566.14,0.00013972,2]
[333203491,1721943052418,-912.56,0.00013972,2]
[333203492,1721943052428,-1505.54,0.00013972,2]
[333203493,1721943052438,-500.0,0.00013972,2]
[333203494,1721943052448,-793.2,0.00013972,2]
[333203495,1721943052457,-1019.64,0.00013972,2]
[333203496,1721943052468,-151.0,0.00013972,2]
[333203497,1721943052478,-151.0,0.00013972,2]
[333203498,1721943052488,-723.89,0.00013972,2]
[333203499,1721943052498,-3993.67,0.00013972,2]
[333203500,1721943052507,-500.0,0.00013972,2]
[333203501,1721943052517,-398.53302431,0.00013972,2]
[333203502,1721943052528,-500.0,0.00013972,2]
[333203503,1721943052537,-1334.81,0.00013972,2]
[333203504,1721943052547,-500.0,0.00013972,2]
[333203505,1721943052556,-500.0,0.00013972,2]
[333203506,1721943052565,-501.93276523,0.00013972,2]
[333203507,1721943052575,-1289.32,0.00013972,2]
[333203508,1721943052585,-1085.58,0.00013972,2]
[333203509,1721943052595,-500.0,0.00013972,2]
[333203510,1721943052606,-582.4,0.00013972,2]
[333203511,1721943052617,-500.0,0.00013972,2]
[333203512,1721943052628,-1192.5,0.00013972,2]
[333203513,1721943052640,-960.48,0.00013972,2]
[333203514,1721943052651,-500.0,0.00013972,2]
[333203515,1721943052661,-500.0,0.00013972,2]
[333203516,1721943052672,-1313.81,0.00013972,2]
[333203517,1721943052685,-151.0,0.00013972,2]
[333203518,1721943052695,-151.0,0.00013972,2]
[333203519,1721943052704,-500.0,0.00013972,2]
[333203520,1721943052714,-500.0,0.00013972,2]
[333203521,1721943052728,-500.0,0.00013972,2]
[333203522,1721943052737,-515.7,0.00013972,2]
[333203523,1721943052748,-500.0,0.00013972,2]
[333203524,1721943052758,-500.0,0.00013972,2]
[333203525,1721943052767,-500.0,0.00013972,2]
[333203526,1721943052777,-2030.1,0.00013972,2]
[333203527,1721943052786,-500.0,0.00013972,2]
[333203528,1721943052795,-500.0,0.00013972,2]
[333203529,1721943052804,-995.95,0.00013972,2]
[333203530,1721943052814,-151.0,0.00013972,2]
[333203531,1721943052960,-151.0,0.00013972,2]
[333203532,1721943052970,-151.0,0.00013972,2]
[333203533,1721943052980,-151.0,0.00013972,2]
[333203534,1721943052991,-151.0,0.00013972,2]
[333203535,1721943053003,-151.0,0.00013972,2]
[333203536,1721943053013,-500.0,0.00013972,2]
[333203537,1721943053024,-1096.43,0.00013972,2]
[333203538,1721943053036,-674.01,0.00013972,2]
[333203539,1721943053046,-500.0,0.00013972,2]
[333203540,1721943053057,-500.0,0.00013972,2]
[333203541,1721943053069,-500.0,0.00013972,2]
[333203542,1721943053080,-781.75,0.00013972,2]
[333203543,1721943053091,-2388.97,0.00013972,2]
[333203544,1721943053102,-500.0,0.00013972,2]
[333203545,1721943053113,-500.0,0.00013972,2]
[333203546,1721943053124,-500.0,0.00013972,2]
[333203547,1721943053134,-151.0,0.00013972,2]
[333203548,1721943053143,-151.0,0.00013972,2]
[333203549,1721943053152,-500.0,0.00013972,2]
[333203550,1721943053162,-500.0,0.00013972,2]
[333203551,1721943053171,-151.0,0.00013972,2]
[333203552,1721943053181,-151.0,0.00013972,2]
[333203553,1721943053192,-172.84668,0.00013999,2]
[333203554,1721943053201,-182.341854,0.00013999,2]
[333203555,1721943053211,-151.0,0.00014236,2]
[333203556,1721943053220,-591.330267,0.00014245,2]
[333203557,1721943053229,-591.330267,0.00014245,2]
[333203558,1721943053239,-565.34,0.00014246,2]
[333203559,1721943053249,-500.0,0.00014246,2]
[333203560,1721943053258,-500.0,0.00014246,2]
[333203561,1721943053268,-500.0,0.00014246,2]
[333203562,1721943053278,-500.0,0.00014246,2]
[333203563,1721943053287,-500.0,0.00014246,2]
[333203564,1721943053296,-500.0,0.00014246,2]
[333203565,1721943053306,-500.0,0.00014246,2]
[333203566,1721943053315,-500.0,0.00014246,2]
[333203567,1721943053324,-555.21,0.00014246,2]
[333203568,1721943053334,-981.69,0.00014246,2]
[333203569,1721943053344,-511.47491556,0.00014246,2]
[333203570,1721943053353,-500.0,0.00014246,2]
[333203571,1721943053363,-500.0,0.00014246,2]
[333203572,1721943053374,-500.0,0.00014246,2]
[333203573,1721943053383,-500.0,0.00014246,2]
[333203574,1721943053396,-181.56015959,0.00014246,2]
[333203575,1721943053406,-500.0,0.00014246,2]
[333203576,1721943053415,-500.0,0.00014246,2]
[333203577,1721943053425,-500.0,0.00014246,2]
[333203578,1721943053436,-744.12,0.00014246,2]
[333203579,1721943053445,-720.54,0.00014246,2]
[333203580,1721943053454,-500.0,0.00014246,2]
[333203581,1721943053463,-500.0,0.00014246,2]
[333203582,1721943053477,-151.0,0.00014246,2]
[333203583,1721943053488,-151.0,0.00014246,2]
[333203584,1721943053500,-1096.07,0.00014246,2]
[333203585,1721943053512,-500.0,0.00014246,2]
[333203586,1721943053522,-500.0,0.00014246,2]
[333203587,1721943053534,-740.01,0.00014246,2]
[333203588,1721943053544,-500.0,0.00014246,2]
[333203589,1721943053555,-500.0,0.00014246,2]
[333203590,1721943053567,-1683.44,0.00014246,2]
[333203591,1721943053579,-991.31,0.00014246,2]
[333203592,1721943053589,-500.0,0.00014246,2]
[333203593,1721943053601,-448.33503417,0.00014246,2]
[333203594,1721943053611,-500.0,0.00014246,2]
[333203595,1721943053621,-500.0,0.00014246,2]
[333203596,1721943053634,-500.0,0.00014246,2]
[333203597,1721943053644,-500.0,0.00014246,2]
[333203598,1721943053653,-500.0,0.00014246,2]
[333203599,1721943053664,-500.0,0.00014246,2]
[333203600,1721943053675,-500.0,0.00014246,2]
[333203601,1721943053686,-500.0,0.00014246,2]
[333203602,1721943053696,-151.0,0.00014246,2]
[333203603,1721943053706,-500.0,0.00014246,2]
[333203604,1721943053715,-500.0,0.00014246,2]
[333203605,1721943053725,-500.0,0.00014246,2]
[333203606,1721943053734,-949.11,0.00014246,2]
[333203607,1721943053743,-500.0,0.00014246,2]
[333203608,1721943053753,-633.37961756,0.00014246,2]
[333203609,1721943053763,-554.8,0.00014246,2]
[333203610,1721943053771,-500.0,0.00014246,2]
[333203611,1721943053781,-500.0,0.00014246,2]
[333203612,1721943053790,-500.0,0.00014246,2]
[333203613,1721943053800,-508.86161878,0.00014246,2]
[333203614,1721943053809,-500.0,0.00014246,2]
[333203615,1721943053819,-894.46,0.00014246,2]
[333203616,1721943053828,-707.95,0.00014246,2]
[333203617,1721943053837,-504.20734521,0.00014246,2]
[333203618,1721943053847,-500.0,0.00014246,2]
[333203619,1721943053856,-755.72,0.00014246,2]
[333203620,1721943053865,-500.0,0.00014246,2]
[333203621,1721943053875,-935.36,0.00014246,2]
[333203622,1721943053885,-614.11,0.00014246,2]
[333203623,1721943053895,-500.0,0.00014246,2]
[333203624,1721943053906,-539.96,0.00014246,2]
[333203625,1721943053919,-500.0,0.00014246,2]
[333203626,1721943053930,-151.0,0.00014246,2]
[333203627,1721943053944,-151.0,0.00014246,2]
[333203628,1721943053956,-500.0,0.00014246,2]
[333203629,1721943053966,-151.0,0.00014246,2]
[333203630,1721943053978,-500.0,0.00014246,2]
[333203631,1721943053988,-156.556314,0.00014246,2]
[333203632,1721943053999,-500.0,0.00014246,2]
[333203633,1721943054009,-500.0,0.00014246,2]
[333203634,1721943054020,-920.94,0.00014246,2]
[333203635,1721943054031,-500.24814852,0.00014246,2]
[333203636,1721943054040,-615.06,0.00014246,2]
[333203637,1721943054052,-500.0,0.00014246,2]
[333203638,1721943054062,-500.0,0.00014246,2]
[333203639,1721943054072,-500.0,0.00014246,2]
[333203640,1721943054083,-500.0,0.00014246,2]
[333203641,1721943054094,-500.0,0.00014246,2]
[333203642,1721943054104,-500.0,0.00014246,2]
[333203643,1721943054115,-694.32,0.00014246,2]
[333203644,1721943054125,-674.92,0.00014246,2]
[333203645,1721943054135,-621.83085961,0.00014246,2]
[333203646,1721943054147,-650.86,0.00014246,2]
[333203647,1721943054158,-1136.87,0.00014246,2]
[333203648,1721943054168,-842.73,0.00014246,2]
[333203649,1721943054178,-500.0,0.00014246,2]
[333203650,1721943054188,-500.0,0.00014246,2]
[333203651,1721943054197,-905.88,0.00014246,2]
[333203652,1721943054207,-603.24,0.00014246,2]
[333203653,1721943054217,-500.0,0.00014246,2]
[333203654,1721943054227,-500.0,0.00014246,2]
[333203655,1721943054236,-500.0,0.00014246,2]
[333203656,1721943054246,-500.0,0.00014246,2]
[333203657,1721943054256,-500.0,0.00014246,2]
[333203658,1721943054266,-500.0,0.00014246,2]
[333203659,1721943054275,-706.07,0.00014246,2]
[333203660,1721943054285,-500.0,0.00014246,2]
[333203661,1721943054296,-500.0,0.00014246,2]
[333203662,1721943054306,-500.0,0.00014246,2]
[333203663,1721943054315,-990.09,0.00014246,2]
[333203664,1721943054325,-600.87451103,0.00014246,2]
[333203665,1721943054335,-500.0,0.00014246,2]
[333203666,1721943054345,-509.18590537,0.00014246,2]
[333203667,1721943054355,-500.0,0.00014246,2]
[333203668,1721943054365,-846.08,0.00014246,2]
[333203669,1721943054375,-172.414785,0.00014246,2]
[333203670,1721943054385,-172.414785,0.00014246,2]
[333203671,1721943054398,-896.74,0.00014246,2]
[333203672,1721943054408,-172.414785,0.00014246,2]
[333203673,1721943054417,-500.0,0.00014246,2]
[333203674,1721943054427,-172.414785,0.00014246,2]
[333203675,1721943054439,-500.0,0.00014246,2]
[333203676,1721943054449,-500.0,0.00014246,2]
[333203677,1721943054459,-560.49,0.00014246,2]
[333203678,1721943054471,-500.0,0.00014246,2]
[333203679,1721943054481,-500.0,0.00014246,2]
[333203680,1721943054490,-1349.81,0.00014246,2]
[333203681,1721943054500,-591.330267,0.00014246,2]
[333203682,1721943054510,-500.0,0.00014246,2]
[333203683,1721943054520,-500.0,0.00014246,2]
[333203684,1721943054529,-591.330267,0.00014246,2]
[333203685,1721943054539,-500.0,0.00014246,2]
[333203686,1721943054548,-500.0,0.00014246,2]
[333203687,1721943054558,-692.13,0.00014246,2]
[333203688,1721943054568,-500.0,0.00014246,2]
[333203689,1721943054577,-500.0,0.00014246,2]
[333203690,1721943054587,-279.01476554,0.00014246,2]
[333203691,1721943054596,-929.3,0.00014246,2]
[333203692,1721943054606,-500.0,0.00014246,2]
[333203693,1721943054615,-500.0,0.00014246,2]
[333203694,1721943054625,-832.11,0.00014246,2]
[333203695,1721943054634,-500.0,0.00014246,2]
[333203696,1721943054643,-500.0,0.00014246,2]
[333203697,1721943054652,-151.0,0.00014246,2]
[333203698,1721943054661,-151.0,0.00014246,2]
[333203699,1721943054671,-500.0,0.00014246,2]
[333203700,1721943054680,-500.0,0.00014246,2]
[333203701,1721943054691,-500.0,0.00014246,2]
[333203702,1721943054701,-515.759307,0.00014246,2]
[333203703,1721943054710,-515.759307,0.00014246,2]
[333203704,1721943054720,-515.759307,0.00014246,2]
[333203705,1721943054730,-515.759307,0.00014246,2]
[333203706,1721943054739,-500.0,0.00014246,2]
[333203707,1721943054749,-1772.25,0.00014246,2]
[333203708,1721943054759,-500.0,0.00014246,2]
[333203709,1721943054768,-516.34,0.00014246,2]
[333203710,1721943054778,-500.0,0.00014246,2]
[333203711,1721943054787,-1528.04,0.00014246,2]
[333203712,1721943054797,-731.97,0.00014246,2]
[333203713,1721943054807,-813.64,0.00014246,2]
[333203714,1721943054816,-832.58,0.00014246,2]
[333203715,1721943054826,-500.0,0.00014246,2]
[333203716,1721943054835,-856.03,0.00014246,2]
[333203717,1721943054846,-500.0,0.00014246,2]
[333203718,1721943054856,-500.0,0.00014246,2]
[333203719,1721943054866,-500.0,0.00014246,2]
[333203720,1721943054877,-2305.9,0.00014246,2]
[333203721,1721943054888,-500.0,0.00014246,2]
[333203722,1721943054899,-500.0,0.00014246,2]
[333203723,1721943054909,-1627.06,0.00014246,2]
[333203724,1721943054919,-500.0,0.00014246,2]
[333203725,1721943054930,-151.0,0.00014246,2]
[333203726,1721943054943,-464.35473855,0.00014246,2]
[333203727,1721943054953,-151.0,0.00014246,2]
[333203728,1721943054964,-500.0,0.00014246,2]
[333203729,1721943054974,-1486.08,0.00014246,2]
[333203730,1721943054985,-2159.85,0.00014246,2]
[333203731,1721943054995,-500.0,0.00014246,2]
[333203732,1721943055003,-500.0,0.00014246,2]
[333203733,1721943055013,-1384.64,0.00014246,2]
[333203734,1721943055022,-500.0,0.00014246,2]
[333203735,1721943055031,-376.18821807,0.00014246,2]
[333203736,1721943055041,-500.0,0.00014246,2]
[333203737,1721943055050,-686.6,0.00014246,2]
[333203738,1721943055060,-1381.17,0.00014246,2]
[333203739,1721943055069,-500.0,0.00014246,2]
[333203740,1721943055079,-500.0,0.00014246,2]
[333203741,1721943055088,-500.0,0.00014246,2]
[333203742,1721943055098,-903.84,0.00014246,2]
[333203743,1721943055107,-500.0,0.00014246,2]
[333203744,1721943055116,-895.94,0.00014246,2]
[333203745,1721943055126,-508.06955036,0.00014246,2]
[333203746,1721943055138,-768.52,0.00014246,2]
[333203747,1721943055148,-500.0,0.00014246,2]
[333203748,1721943055158,-500.0,0.00014246,2]
[333203749,1721943055167,-8589.84,0.00014246,2]
[333203750,1721943055177,-5868.84,0.00014246,2]
[333203751,1721943055190,-500.0,0.00014246,2]
[333203752,1721943055201,-500.0,0.00014246,2]
[333203753,1721943055212,-546.36,0.00014246,2]
[333203754,1721943055223,-500.0,0.00014246,2]
[333203755,1721943055234,-500.0,0.00014246,2]
[333203756,1721943055247,-3654.32,0.00014246,2]
[333203757,1721943055258,-500.0,0.00014246,2]
[333203758,1721943055267,-1196.88,0.00014246,2]
[333203759,1721943055278,-500.0,0.00014246,2]
[333203760,1721943055288,-151.0,0.00014246,2]
[333203761,1721943055299,-500.0,0.00014246,2]
[333203762,1721943055309,-1371.58,0.00014246,2]
[333203763,1721943055321,-1434.79,0.00014246,2]
[333203764,1721943055332,-785.06,0.00014246,2]
[333203765,1721943055342,-1617.67,0.00014246,2]
[333203766,1721943055352,-500.0,0.00014246,2]
[333203767,1721943055361,-500.0,0.00014246,2]
[333203768,1721943055371,-500.0,0.00014246,2]
[333203769,1721943055381,-7052.47,0.00014246,2]
[333203770,1721943055398,-500.0,0.00014246,2]
[333203771,1721943055408,-500.0,0.00014246,2]
[333203772,1721943055418,-1169.65,0.00014246,2]
[333203773,1721943055427,-569.17,0.00014246,2]
[333203774,1721943055439,-500.0,0.00014246,2]
[333203775,1721943055451,-738.58,0.00014246,2]
[333203776,1721943055462,-552.74,0.00014246,2]
[333203777,1721943055474,-500.0,0.00014246,2]
[333203778,1721943055483,-2526.03,0.00014246,2]
[333203779,1721943055492,-161.106334,0.00014246,2]
[333203780,1721943055502,-161.106334,0.00014246,2]
[333203781,1721943055511,-161.106334,0.00014246,2]
[333203782,1721943055520,-500.0,0.00014246,2]
[333203783,1721943055529,-161.106334,0.00014246,2]
[333203784,1721943055538,-500.0,0.00014246,2]
[333203785,1721943055547,-566.14,0.00014246,2]
[333203786,1721943055556,-912.56,0.00014246,2]
[333203787,1721943055566,-1505.54,0.00014246,2]
[333203788,1721943055576,-500.0,0.00014246,2]
[333203789,1721943055585,-793.2,0.00014246,2]
[333203790,1721943055594,-1019.64,0.00014246,2]
[333203791,1721943055603,-151.0,0.00014246,2]
[333203792,1721943055615,-723.89,0.00014246,2]
[333203793,1721943055626,-151.0,0.00014246,2]
[333203794,1721943055635,-3993.67,0.00014246,2]
[333203795,1721943055647,-500.0,0.00014246,2]
[333203796,1721943055656,-1334.81,0.00014246,2]
[333203797,1721943055666,-391.94001569,0.00014246,2]
[333203798,1721943055676,-500.0,0.00014246,2]
[333203799,1721943055687,-1289.32,0.00014246,2]
[333203800,1721943055698,-1085.58,0.00014246,2]
[333203801,1721943055710,-500.0,0.00014246,2]
[333203802,1721943055720,-582.4,0.00014246,2]
[333203803,1721943055730,-500.0,0.00014246,2]
[333203804,1721943055742,-1192.5,0.00014246,2]
[333203805,1721943055753,-960.48,0.00014246,2]
[333203806,1721943055763,-500.0,0.00014246,2]
[333203807,1721943055774,-1313.81,0.00014246,2]
[333203808,1721943055784,-332.56576979,0.00014246,2]
[333203809,1721943055795,-500.0,0.00014246,2]
[333203810,1721943055806,-500.0,0.00014246,2]
[333203811,1721943055816,-515.7,0.00014246,2]
[333203812,1721943055827,-500.0,0.00014246,2]
[333203813,1721943055837,-500.0,0.00014246,2]
[333203814,1721943055849,-2030.1,0.00014246,2]
[333203815,1721943055859,-500.0,0.00014246,2]
[333203816,1721943055868,-995.95,0.00014246,2]
[333203817,1721943055878,-151.0,0.00014246,2]
[333203818,1721943055888,-408.06958339,0.00014246,2]
[333203819,1721943055898,-151.0,0.00014246,2]
[333203820,1721943055909,-151.0,0.00014246,2]
[333203821,1721943055919,-151.0,0.00014246,2]
[333203822,1721943055930,-1096.43,0.00014246,2]
[333203823,1721943055943,-674.01,0.00014246,2]
[333203824,1721943055955,-500.0,0.00014246,2]
[333203825,1721943055968,-500.0,0.00014246,2]
[333203826,1721943055977,-781.75,0.00014246,2]
[333203827,1721943055986,-2388.97,0.00014246,2]
[333203828,1721943055995,-157.38,0.00014246,2]
[333203829,1721943056004,-500.0,0.00014246,2]
[333203830,1721943056013,-500.0,0.00014246,2]
[333203831,1721943056023,-151.0,0.00014246,2]
[333203832,1721943056032,-151.0,0.00014246,2]
[333203833,1721943056041,-500.0,0.00014246,2]
[333203834,1721943056050,-500.0,0.00014246,2]
[333203835,1721943056060,-151.0,0.00014246,2]
[333203836,1721943056071,-151.0,0.00014246,2]
[333203837,1721943056082,-187.5,0.00014247,2]
[333203838,1721943056092,-712.5,0.00014247,2]
[333203839,1721943056102,-151.0,0.00014284,2]
[333203840,1721943056113,-1409.0,0.00014284,2]
[333203841,1721943056122,-150.0,0.00014284,2]
[333203842,1721943056132,-505.0,0.00014284,2]
[333203843,1721943056144,-639.98444627,0.00014289,2]
[333203844,1721943056155,-5306.88604622,0.00014297,2]
[333203845,1721943056164,-154.74467129,0.0001452,2]
[333203846,1721943056174,-151.0,0.0001452,2]
[333203847,1721943056183,-565.34,0.0001452,2]
[333203848,1721943056193,-500.0,0.0001452,2]
[333203849,1721943056203,-500.0,0.0001452,2]
[333203850,1721943056212,-500.0,0.0001452,2]
[333203851,1721943056221,-500.0,0.0001452,2]
[333203852,1721943056230,-555.21,0.0001452,2]
[333203853,1721943056240,-981.69,0.0001452,2]
[333203854,1721943056250,-500.0,0.0001452,2]
[333203855,1721943056259,-500.0,0.0001452,2]
[333203856,1721943056268,-500.0,0.0001452,2]
[333203857,1721943056278,-500.0,0.0001452,2]
[333203858,1721943056287,-500.0,0.0001452,2]
[333203859,1721943056296,-500.0,0.0001452,2]
[333203860,1721943056306,-500.0,0.0001452,2]
[333203861,1721943056315,-744.12,0.0001452,2]
[333203862,1721943056324,-720.54,0.0001452,2]
[333203863,1721943056334,-500.0,0.0001452,2]
[333203864,1721943056343,-500.0,0.0001452,2]
[333203865,1721943056353,-1096.07,0.0001452,2]
[333203866,1721943056363,-500.0,0.0001452,2]
[333203867,1721943056373,-402.36312419,0.0001452,2]
[333203868,1721943056507,-740.01,0.0001452,2]
[333203869,1721943056520,-500.0,0.0001452,2]
[333203870,1721943056531,-500.0,0.0001452,2]
[333203871,1721943056540,-1683.44,0.0001452,2]
[333203872,1721943056552,-991.31,0.0001452,2]
[333203873,1721943056564,-500.0,0.0001452,2]
[333203874,1721943056574,-500.0,0.0001452,2]
[333203875,1721943056586,-500.0,0.0001452,2]
[333203876,1721943056597,-500.0,0.0001452,2]
[333203877,1721943056607,-500.0,0.0001452,2]
[333203878,1721943056617,-500.0,0.0001452,2]
[333203879,1721943056628,-103.67269886,0.0001452,2]
[333203880,1721943056856,-396.32730114,0.0001452,2]
[333203881,1721943056869,-62.87625423,0.0001452,2]
[333203900,1721943417511,-1598.4020981,0.00012773,2]
[333203901,1721943472097,163.493829,0.00027123,120]
[333203902,1721943508980,-1180.79074834,0.00012773,2]
[333203906,1721943990935,163.493829,0.00027123,120]
[333203943,1721944235283,-200.0,0.00013425,2]
[333203944,1721944235293,-2330.7832526,0.00013588,2]
[333203945,1721944235303,-196.0,0.00013687,2]
[333203946,1721944235313,-1823.6595237,0.00013688,2]
[333204045,1721944237913,-2147.12798362,0.00013688,2]
[333204046,1721944237965,-547.3820516,0.00013688,2]
[333204066,1721944241345,-138853.76555578,0.00013688,2]
[333204067,1721944241358,-7068.7879573,0.00013688,2]
[333204068,1721944241368,-19843.11154551,0.00013689,2]
[333204089,1721944242982,-1025.8805,0.00013689,2]
[333204090,1721944242996,-3300.1543449,0.00013689,2]
[333204091,1721944243008,-3925.11735342,0.00013689,2]
[333204129,1721944246639,-9515.91702427,0.00013689,2]
[333204130,1721944246650,-151.0,0.00013698,2]
[333204131,1721944246659,-289.59984985,0.00013698,2]
[333204132,1721944246669,-500.0,0.00013698,2]
[333204133,1721944246679,-500.0,0.00013698,2]
[333204134,1721944246688,-500.0,0.00013698,2]